bitfinex/quotes_SOLUSD_20220306
["timestamp","ask_amount","ask_price","bid_price","bid_amount"]
[1646591364467,1.55913338,87.286,87.24,17.1984]
[1646591364665,5.729,87.285,87.24,17.1984]
[1646591366366,1.55913338,87.284,87.24,17.1984]
[1646591366568,5.729,87.283,87.24,17.1984]
[1646591366765,5.729,87.284,87.24,17.1984]
[1646591366966,1.55913338,87.285,87.24,17.1984]
[1646591367567,1.55913338,87.286,87.24,17.1984]
[1646591367766,1.55913338,87.285,87.24,17.1984]
[1646591368266,1.55913338,87.278,87.24,17.1984]
[1646591369172,1.55913338,87.277,87.24,17.1984]
[1646591369668,1.55913338,87.278,87.24,17.1984]
[1646591370670,1.55913338,87.284,87.241,5.73]
[1646591370870,1.55913338,87.284,87.25,17.195]
[1646591372070,1.55913338,87.278,87.25,17.195]
[1646591373775,1.55913338,87.279,87.25,17.195]
[1646591373972,1.55913338,87.274,87.25,17.195]
[1646591374774,1.55913338,87.275,87.25,17.195]
[1646591375174,23.7713,87.294,87.25,17.195]
[1646591375175,1.55913338,87.276,87.25,17.195]
[1646591375774,1.55913338,87.277,87.25,17.195]
[1646591375974,1.55913338,87.276,87.25,17.195]
[1646591376979,1.55913338,87.274,87.25,17.195]
[1646591378879,1.55913338,87.275,87.25,17.195]
[1646591379778,1.56528129,87.274,87.251,122.69538798]
[1646591379979,1.56528129,87.275,87.251,70.0]
[1646591381081,1.56528129,87.275,87.26,17.195]
[1646591381479,1.56528129,87.281,87.26,17.195]
[1646591381881,1.56528129,87.28,87.26,17.195]
[1646591382982,5.729,87.319,87.26,17.195]
[1646591384482,1.56478853,87.281,87.26,17.195]
[1646591384685,1.56478853,87.28,87.26,17.195]
[1646591385184,1.56478853,87.282,87.26,17.195]
[1646591385684,1.56478853,87.281,87.26,17.195]
[1646591385883,1.56478853,87.282,87.26,17.195]
[1646591387287,5.729,87.319,87.26,17.195]
[1646591387684,1.56447529,87.283,87.26,17.195]
[1646591388286,1.56447529,87.287,87.26,17.195]
[1646591388584,1.56447529,87.291,87.26,17.195]
[1646591388986,4.69342587,87.34,87.261,114.3]
[1646591388987,0.00447529,87.292,87.261,114.3]
[1646591389186,3.12895058,87.324,87.27,17.1865]
[1646591389386,3.12895058,87.327,87.271,47.79687092]
[1646591389588,3.12895058,87.327,87.272,114.3]
[1646591389790,3.12895058,87.331,87.272,114.3]
[1646591389989,3.12895058,87.337,87.273,24.0421]
[1646591390192,3.12895058,87.338,87.28,17.1868]
[1646591390991,3.12895058,87.333,87.28,17.1868]
[1646591391191,5.726,87.332,87.28,17.1868]
[1646591391393,5.726,87.334,87.28,17.1868]
[1646591391994,3.12895058,87.334,87.28,17.1868]
[1646591392195,5.726,87.333,87.28,17.1868]
[1646591393395,3.12895058,87.335,87.28,17.1868]
[1646591393396,5.726,87.334,87.28,17.1868]
[1646591393997,8.85495058,87.335,87.28,17.1868]
[1646591394197,3.12895058,87.335,87.28,17.1868]
[1646591394799,3.12895058,87.337,87.28,17.1868]
[1646591395201,3.12895058,87.336,87.28,17.1868]
[1646591395612,3.12895058,87.337,87.28,17.1868]
[1646591396214,22.54,87.339,87.28,17.1868]
[1646591397111,22.54,87.339,87.273,24.0421]
[1646591397311,25.66895058,87.339,87.273,24.0421]
[1646591397515,5.726,87.338,87.273,24.0421]
[1646591397713,8.85495058,87.338,87.273,24.0421]
[1646591399216,114.3,87.337,87.28,17.191]
[1646591399518,114.3,87.335,87.28,17.191]
[1646591399717,120.026,87.334,87.28,17.191]
[1646591400321,5.726,87.334,87.28,17.191]
[1646591400518,5.726,87.337,87.28,17.191]
[1646591400718,8.85495058,87.337,87.28,17.191]
[1646591400917,114.3,87.336,87.28,17.191]
[1646591401117,8.85495058,87.337,87.273,24.0421]
[1646591401118,17.1923,87.33,87.273,24.0421]
[1646591401320,117.42895058,87.328,87.273,24.0421]
[1646591401520,114.3,87.326,87.273,24.0421]
[1646591401720,114.3,87.324,87.249,26.01085599]
[1646591401919,114.3,87.324,87.243,23.1485]
[1646591401920,30.4445,87.323,87.254,22.7153]
[1646591403119,17.1935,87.32,87.26,17.1939]
[1646591403321,5.728,87.319,87.26,17.1939]
[1646591404322,114.3,87.318,87.26,17.1939]
[1646591404522,114.3,87.316,87.26,17.1939]
[1646591404728,114.3,87.314,87.26,17.1939]
[1646591404925,5.728,87.313,87.26,17.1939]
[1646591405226,23.5465,87.312,87.26,17.1939]
[1646591405825,5.728,87.311,87.26,17.1939]
[1646591406027,17.1953,87.31,87.254,22.7153]
[1646591406227,5.728,87.309,87.254,22.7153]
[1646591407425,17.1978,87.3,87.254,22.7153]
[1646591407627,5.728,87.299,87.254,22.7153]
[1646591409526,5.728,87.299,87.243,5.729]
[1646591409827,24.5117,87.298,87.244,23.2114]
[1646591410026,5.729,87.297,87.244,23.2114]
[1646591410229,5.729,87.297,87.25,17.1971]
[1646591417436,0.38156202,87.295,87.25,17.1971]
[1646591417635,120.029,87.294,87.25,17.1971]
[1646591419036,120.029,87.294,87.244,23.2114]
[1646591419236,114.3,87.289,87.184,114.3]
[1646591419438,0.66319543,87.286,87.221,23.7833]
[1646591419639,0.66319543,87.286,87.2,13.78]
[1646591419640,3.12895058,87.285,87.186,24.28169712]
[1646591419839,3.79214601,87.284,87.186,0.69924113]
[1646591420038,22.7706,87.288,87.186,0.69924113]
[1646591420039,0.66319543,87.281,87.186,0.69924113]
[1646591420238,0.66319543,87.278,87.186,0.69924113]
[1646591420441,0.66319543,87.275,87.187,24.1477]
[1646591420639,114.96319543,87.269,87.19,17.2096]
[1646591420842,0.66319543,87.266,87.19,17.2096]
[1646591421041,0.66319543,87.263,87.19,17.2096]
[1646591421240,0.66319543,87.26,87.19,17.2096]
[1646591421439,0.66319543,87.257,87.186,0.69924113]
[1646591421639,8.84,87.263,87.186,0.69924113]
[1646591421640,17.2088,87.25,87.186,0.69924113]
[1646591421840,0.66319543,87.248,87.186,0.69924113]
[1646591422041,0.66319543,87.245,87.186,0.69924113]
[1646591422240,114.3,87.243,87.186,0.69924113]
[1646591422440,114.3,87.241,87.186,0.69924113]
[1646591422641,114.3,87.239,87.186,0.69924113]
[1646591422942,22.7397,87.247,87.186,0.69924113]
[1646591422943,17.2119,87.23,87.186,0.69924113]
[1646591423142,114.3,87.228,87.186,0.69924113]
[1646591423346,114.3,87.226,87.186,0.69924113]
[1646591423543,114.3,87.224,87.186,0.69924113]
[1646591423943,5.732,87.223,87.186,0.69924113]
[1646591424444,114.3,87.219,87.186,0.69924113]
[1646591424644,0.66319543,87.216,87.186,0.69924113]
[1646591424844,0.66319543,87.213,87.186,0.69924113]
[1646591425046,5.732,87.212,87.186,0.69924113]
[1646591425246,114.96319543,87.212,87.186,0.69924113]
[1646591425452,0.66319543,87.209,87.186,0.69924113]
[1646591425650,114.3,87.207,87.186,0.69924113]
[1646591425853,114.3,87.205,87.186,0.69924113]
[1646591426050,120.034,87.204,87.186,0.69924113]
[1646591426252,114.3,87.204,87.186,0.69924113]
[1646591427150,5.734,87.21,87.186,0.69924113]
[1646591427350,22.7352,87.211,87.186,0.19924113]
[1646591427752,3.12895058,87.256,87.186,0.19924113]
[1646591427950,24.5899,87.245,87.186,0.19924113]
[1646591428554,5.732,87.244,87.186,0.19924113]
[1646591428952,5.732,87.244,87.19,17.2092]
[1646591434973,24.5899,87.245,87.19,17.2092]
[1646591437275,17.2084,87.25,87.19,17.2092]
[1646591437874,5.732,87.249,87.19,17.2092]
[1646591438075,5.732,87.259,87.19,17.2092]
[1646591438276,5.732,87.259,87.191,23.606]
[1646591438476,5.732,87.259,87.21,17.205]
[1646591441480,5.732,87.259,87.2,17.2069]
[1646591441481,17.2073,87.25,87.2,17.2069]
[1646591441976,5.732,87.267,87.2,17.2069]
[1646591442779,5.732,87.267,87.201,22.8771]
[1646591442981,17.2059,87.26,87.201,22.8771]
[1646591443180,5.731,87.259,87.201,22.8771]
[1646591443984,24.7606,87.258,87.201,22.8771]
[1646591444180,5.732,87.257,87.201,22.8771]
[1646591446484,17.2071,87.25,87.201,22.8771]
[1646591446685,5.732,87.249,87.201,22.8771]
[1646591448287,114.3,87.248,87.19,17.2085]
[1646591448488,17.2094,87.24,87.19,17.2085]
[1646591448687,5.732,87.239,87.19,17.2085]
[1646591448888,6.12935971,87.239,87.19,17.2085]
[1646591449289,5.732,87.239,87.19,17.2085]
[1646591449691,23.1306,87.247,87.19,17.2085]
[1646591450096,23.1306,87.247,87.191,23.5479]
[1646591450291,23.1306,87.247,87.2,17.2072]
[1646591452794,5.732,87.246,87.2,17.2072]
[1646591454193,23.1306,87.247,87.2,17.2072]
[1646591458098,5.732,87.258,87.2,17.2072]
[1646591458298,30.6321,87.258,87.201,23.9792]
[1646591460503,17.2076,87.25,87.201,23.9792]
[1646591460703,5.732,87.249,87.201,23.9792]
[1646591463929,17.2076,87.25,87.201,23.9792]
[1646591466033,5.732,87.254,87.201,23.9792]
[1646591466736,8.86095058,87.254,87.201,23.9792]
[1646591468136,114.3,87.249,87.19,17.2089]
[1646591468337,117.42895058,87.247,87.191,5.732]
[1646591468537,3.12895058,87.243,87.173,5.732]
[1646591468738,9.32652399,87.242,87.173,5.732]
[1646591469237,17.2106,87.24,87.174,61.92747945]
[1646591469437,17.2106,87.24,87.18,17.2106]
[1646591469637,17.2106,87.24,87.181,5.732]
[1646591469838,12.00478453,87.239,87.181,5.732]
[1646591470038,28.86108453,87.238,87.182,24.3751]
[1646591470240,12.00478453,87.237,87.182,24.3751]
[1646591470539,5.732,87.237,87.182,24.3751]
[1646591470739,6.27283172,87.236,87.182,24.3751]
[1646591471039,5.732,87.235,87.182,24.3751]
[1646591471237,5.732,87.237,87.19,17.209]
[1646591471438,6.27283126,87.236,87.19,17.209]
[1646591471638,5.732,87.235,87.19,17.209]
[1646591471840,5.732,87.237,87.19,17.209]
[1646591473740,22.5883,87.238,87.19,17.209]
[1646591475143,6.27302058,87.237,87.19,17.209]
[1646591476140,5.732,87.236,87.19,17.209]
[1646591476541,5.732,87.237,87.19,17.209]
[1646591480649,17.2114,87.23,87.183,5.732]
[1646591480850,17.2114,87.23,87.182,24.3751]
[1646591480851,5.732,87.229,87.182,24.3751]
[1646591481249,5.732,87.237,87.182,24.3751]
[1646591481448,114.3,87.236,87.182,24.3751]
[1646591481651,114.3,87.234,87.182,24.3751]
[1646591481848,5.732,87.233,87.182,24.3751]
[1646591482052,12.00526993,87.233,87.182,24.3751]
[1646591482249,17.2139,87.22,87.171,23.2025]
[1646591482549,5.734,87.219,87.171,23.2025]
[1646591482750,29.4963,87.219,87.171,23.2025]
[1646591485052,23.7623,87.219,87.171,23.2025]
[1646591488456,23.7623,87.219,87.161,5.734]
[1646591488457,17.2152,87.21,87.161,5.734]
[1646591488656,17.2152,87.21,87.153,22.6404]
[1646591488657,5.734,87.218,87.17,17.2124]
[1646591488857,23.7623,87.219,87.17,17.2124]
[1646591489375,23.7623,87.219,87.172,59.2599041]
[1646591489576,23.7623,87.219,87.18,17.2104]
[1646591490174,5.734,87.237,87.18,17.2104]
[1646591490375,30.21390684,87.236,87.181,5.732]
[1646591490582,23.9405,87.236,87.19,17.2053]
[1646591494782,23.9405,87.236,87.191,5.732]
[1646591495182,23.9405,87.236,87.2,17.2072]
[1646591500485,23.9405,87.236,87.19,17.2089]
[1646591500689,23.9405,87.236,87.191,5.732]
[1646591503289,23.9405,87.236,87.19,17.2089]
[1646591506092,23.9405,87.236,87.191,5.732]
[1646591508294,5.732,87.235,87.174,23.4553]
[1646591508496,17.2111,87.23,87.18,17.2111]
[1646591508693,23.9405,87.236,87.18,17.2111]
[1646591508694,5.732,87.229,87.181,5.732]
[1646591508896,5.732,87.235,87.181,5.732]
[1646591509097,1.56478528,87.224,87.175,5.732]
[1646591510093,1.56478528,87.224,87.19,17.2094]
[1646591511495,1.56478528,87.224,87.191,5.732]
[1646591512797,1.56478528,87.219,87.174,23.4553]
[1646591512997,1.56478528,87.213,87.174,23.4553]
[1646591513197,1.56478528,87.211,87.154,23.6969]
[1646591513398,1.56478528,87.206,87.155,22.5368]
[1646591513600,17.2171,87.2,87.156,5.735]
[1646591514199,1.56478528,87.196,87.156,5.735]
[1646591514598,1.56478528,87.195,87.156,5.735]
[1646591515298,1.56478528,87.194,87.156,5.735]
[1646591516404,17.2191,87.19,87.156,5.735]
[1646591516602,1.56478528,87.186,87.156,5.735]
[1646591516902,1.56478528,87.181,87.156,5.735]
[1646591517100,1.56478528,87.181,87.122,22.9404]
[1646591517300,1.56478528,87.18,87.122,22.9404]
[1646591518101,28.2757,87.189,87.122,22.9404]
[1646591518102,1.56478528,87.181,87.122,22.9404]
[1646591518304,5.737,87.18,87.123,22.49478932]
[1646591518504,22.5387,87.179,87.123,22.49478932]
[1646591519107,22.5387,87.179,87.14,17.2193]
[1646591522404,22.5387,87.179,87.13,17.2209]
[1646591522605,28.2747,87.179,87.13,17.2209]
[1646591523105,22.5387,87.179,87.13,17.2209]
[1646591527810,5.736,87.197,87.131,114.3]
[1646591528010,5.736,87.207,87.15,17.211]
[1646591528210,1.56478528,87.217,87.152,55.59155998]
[1646591528410,7.29878528,87.216,87.152,55.59155998]
[1646591529010,5.734,87.216,87.152,55.59155998]
[1646591529211,7.29878528,87.216,87.152,55.59155998]
[1646591530112,7.29878528,87.216,87.17,17.2124]
[1646591532015,5.734,87.216,87.17,17.2124]
[1646591532213,5.734,87.218,87.17,17.2124]
[1646591533112,7.29878528,87.218,87.17,17.2124]
[1646591535015,1.56478528,87.218,87.17,17.2124]
[1646591535216,1.56478528,87.217,87.17,17.2124]
[1646591535616,1.56478528,87.216,87.17,17.2124]
[1646591535817,1.56478528,87.216,87.171,24.4737]
[1646591537419,1.56478528,87.214,87.171,24.4737]
[1646591538042,1.56478528,87.215,87.171,24.4737]
[1646591538441,1.56478528,87.214,87.171,24.4737]
[1646591539244,1.56478528,87.214,87.18,17.2119]
[1646591539445,1.56478528,87.213,87.18,17.2119]
[1646591541046,1.56478528,87.212,87.18,17.2119]
[1646591541446,1.56478528,87.21,87.18,17.2119]
[1646591542747,1.56478528,87.211,87.18,17.2119]
[1646591542953,1.56478528,87.21,87.18,17.2119]
[1646591543551,1.56478528,87.211,87.18,17.2119]
[1646591544858,1.56478528,87.213,87.18,17.2119]
[1646591545253,1.56478528,87.214,87.18,17.2119]
[1646591545852,1.56478528,87.22,87.18,17.2119]
[1646591546053,1.56478528,87.219,87.18,17.2119]
[1646591546855,1.56478528,87.218,87.18,17.2119]
[1646591547254,1.56478528,87.223,87.18,17.2119]
[1646591547755,1.56478528,87.221,87.18,17.2119]
[1646591548456,1.56478528,87.216,87.18,17.2119]
[1646591548655,1.56478528,87.215,87.18,17.2119]
[1646591550460,1.56478528,87.218,87.18,17.2119]
[1646591551261,1.56478528,87.217,87.18,17.2119]
[1646591551463,1.56478528,87.218,87.18,17.2119]
[1646591552063,1.56478528,87.216,87.18,17.2119]
[1646591554065,1.56478528,87.217,87.18,17.2119]
[1646591554466,1.56478528,87.22,87.181,5.734]
[1646591554667,1.56478528,87.218,87.19,17.2099]
[1646591554865,1.56478528,87.214,87.19,17.2099]
[1646591555268,1.56478528,87.215,87.19,17.2099]
[1646591555466,1.56478528,87.215,87.178,5.732]
[1646591555668,1.56478528,87.208,87.16,17.2144]
[1646591555868,1.56478528,87.207,87.161,5.734]
[1646591556067,5.734,87.223,87.161,5.734]
[1646591556068,1.56478528,87.205,87.161,5.734]
[1646591556468,1.56478528,87.205,87.154,5.735]
[1646591556667,1.56478528,87.205,87.153,23.6909]
[1646591556868,1.56478528,87.199,87.153,23.6909]
[1646591557070,1.56478528,87.197,87.153,23.6909]
[1646591557470,1.56478528,87.196,87.153,23.6909]
[1646591558271,1.56478528,87.196,87.16,17.2152]
[1646591563076,1.56478528,87.197,87.16,17.2152]
[1646591563477,1.56478528,87.196,87.16,17.2152]
[1646591565098,1.56478528,87.197,87.16,17.2152]
[1646591565297,1.56478528,87.197,87.154,5.735]
[1646591565298,1.56478528,87.195,87.154,5.735]
[1646591565501,1.56478528,87.19,87.154,5.735]
[1646591565696,1.56478528,87.19,87.153,23.6909]
[1646591565697,1.56478528,87.191,87.153,23.6909]
[1646591566198,1.56478528,87.19,87.153,23.6909]
[1646591566397,1.56478528,87.19,87.16,17.2157]
[1646591567000,1.56478528,87.191,87.16,17.2157]
[1646591567400,1.56478528,87.192,87.16,17.2157]
[1646591567605,1.56478528,87.192,87.153,23.6909]
[1646591567802,1.56478528,87.191,87.153,23.6909]
[1646591568202,1.56478528,87.192,87.153,23.6909]
[1646591569704,1.56478528,87.192,87.16,17.2158]
[1646591571103,1.56478528,87.193,87.16,17.2158]
[1646591572513,5.735,87.197,87.16,17.2158]
[1646591572514,1.56478528,87.194,87.16,17.2158]
[1646591572716,1.56478528,87.196,87.16,17.2158]
[1646591572911,1.56478528,87.198,87.16,17.2158]
[1646591573112,1.56478528,87.204,87.16,17.2158]
[1646591573311,1.56478528,87.205,87.16,17.2158]
[1646591573513,1.56478528,87.208,87.16,17.2158]
[1646591573711,1.56478528,87.209,87.16,17.2158]
[1646591573910,1.56478528,87.212,87.16,34.6855]
[1646591574311,1.56478528,87.209,87.16,34.6855]
[1646591574510,1.56478528,87.209,87.16,17.2158]
[1646591574711,1.56478528,87.203,87.16,17.2158]
[1646591574911,1.56478528,87.202,87.16,17.2158]
[1646591575111,1.56478528,87.201,87.16,17.2158]
[1646591579016,1.56478528,87.2,87.16,17.2158]
[1646591580218,1.56478528,87.199,87.16,17.2158]
[1646591581119,1.56478528,87.198,87.16,17.2158]
[1646591581520,1.56478528,87.199,87.16,17.2158]
[1646591582620,1.56478528,87.206,87.16,17.2158]
[1646591582820,1.56478528,87.206,87.16,30.9958]
[1646591583020,1.56478528,87.208,87.16,30.9958]
[1646591583621,1.56478528,87.212,87.16,30.9958]
[1646591584423,1.56478528,87.214,87.16,30.9958]
[1646591584622,1.56478528,87.215,87.16,30.9958]
[1646591584821,1.56478528,87.214,87.16,30.9958]
[1646591585421,1.56478528,87.214,87.161,114.3]
[1646591585822,1.56478528,87.219,87.171,114.3]
[1646591586023,1.56478528,87.224,87.18,13.78]
[1646591586222,1.56478528,87.224,87.181,22.6492]
[1646591586426,1.56478528,87.228,87.181,22.6492]
[1646591587023,1.56478528,87.229,87.181,22.6492]
[1646591587224,1.56478528,87.229,87.19,17.2046]
[1646591587423,1.56478528,87.229,87.19,30.9846]
[1646591588424,1.56478528,87.232,87.181,22.6492]
[1646591588627,1.56478528,87.232,87.16,57.3668]
[1646591588628,1.56478528,87.223,87.16,13.78]
[1646591588826,1.56478528,87.22,87.161,23.0137]
[1646591589026,1.56478528,87.219,87.161,23.0137]
[1646591589224,1.56478528,87.216,87.161,23.0137]
[1646591589425,29.1989,87.228,87.161,23.0137]
[1646591589426,1.56478528,87.213,87.161,23.0137]
[1646591589826,1.56478528,87.212,87.161,23.0137]
[1646591590826,1.56478528,87.211,87.161,23.0137]
[1646591591027,1.56478528,87.212,87.161,23.0137]
[1646591591228,1.56478528,87.212,87.17,17.2127]
[1646591591426,1.56478528,87.212,87.171,22.7063]
[1646591592428,1.56478528,87.211,87.16,17.2149]
[1646591592630,1.56478528,87.207,87.16,17.2149]
[1646591592828,1.56478528,87.205,87.16,17.2149]
[1646591593429,1.56478528,87.204,87.16,17.2149]
[1646591593829,1.56478528,87.205,87.16,17.2149]
[1646591594030,1.56478528,87.204,87.16,17.2149]
[1646591594432,1.56478528,87.208,87.16,17.2149]
[1646591595132,1.56478528,87.207,87.16,17.2149]
[1646591595532,1.56478528,87.208,87.16,17.2149]
[1646591596534,1.56478528,87.204,87.16,17.2149]
[1646591599134,1.56478528,87.207,87.16,17.2149]
[1646591599335,1.56478528,87.208,87.16,17.2149]
[1646591599735,1.56478528,87.204,87.16,17.2149]
[1646591600138,1.56478528,87.204,87.17,17.2135]
[1646591600335,1.56478528,87.204,87.171,5.734]
[1646591600535,1.56478528,87.207,87.171,5.734]
[1646591600937,1.56478528,87.206,87.171,5.734]
[1646591601234,1.56478528,87.204,87.171,5.734]
[1646591601438,1.56478528,87.203,87.171,5.734]
[1646591602538,1.56478528,87.202,87.171,5.734]
[1646591603037,1.56478528,87.202,87.17,17.2135]
[1646591603938,1.56478528,87.201,87.17,17.2135]
[1646591605238,1.56478528,87.202,87.17,17.2135]
[1646591606438,1.56478528,87.201,87.17,17.2135]
[1646591607137,1.56478528,87.202,87.17,17.2135]
[1646591608444,1.56478528,87.201,87.17,17.2135]
[1646591608847,1.56478528,87.2,87.17,17.2135]
[1646591609047,1.56478528,87.201,87.17,17.2135]
[1646591609449,1.56478528,87.2,87.17,17.2135]
[1646591609651,1.56478528,87.201,87.17,17.2135]
[1646591610553,1.56478528,87.2,87.16,17.2151]
[1646591610752,1.56478528,87.195,87.155,5.734]
[1646591611051,1.56478528,87.195,87.154,22.7063]
[1646591611052,1.56478528,87.192,87.154,22.7063]
[1646591611254,1.56478528,87.187,87.13,5.735]
[1646591611456,1.56478528,87.185,87.127,30.5651]
[1646591611755,1.56478528,87.182,87.13,17.22]
[1646591611957,1.56478528,87.182,87.131,5.736]
[1646591612152,1.56478528,87.182,87.129,5.736]
[1646591612352,1.56478528,87.184,87.129,5.736]
[1646591612752,1.56478528,87.184,87.14,17.2185]
[1646591612966,1.56478528,87.185,87.14,17.2185]
[1646591614068,0.56478528,87.185,87.14,17.2185]
[1646591614265,17.2192,87.19,87.14,17.2185]
[1646591614467,5.736,87.189,87.14,17.2185]
[1646591617771,114.3,87.188,87.14,17.2185]
[1646591617968,17.2192,87.19,87.14,17.2185]
[1646591617969,114.3,87.186,87.14,17.2185]
[1646591618168,114.3,87.184,87.14,17.2185]
[1646591618369,120.036,87.183,87.14,17.2185]
[1646591618771,24.6919,87.182,87.14,17.2185]
[1646591618971,5.736,87.181,87.14,17.2185]
[1646591621174,24.6919,87.182,87.14,17.2185]
[1646591621575,24.6919,87.182,87.141,5.736]
[1646591621772,24.6919,87.182,87.15,17.216]
[1646591626276,24.6919,87.182,87.14,17.219]
[1646591627176,24.6919,87.182,87.14,7.219]
[1646591627577,17.2212,87.18,87.137,24.8126]
[1646591628279,5.736,87.179,87.118,24.02888466]
[1646591628477,114.3,87.18,87.119,24.0795]
[1646591628677,114.3,87.178,87.119,24.0795]
[1646591628877,114.3,87.176,87.119,24.0795]
[1646591629076,24.6919,87.182,87.119,24.0795]
[1646591629077,114.3,87.174,87.119,24.0795]
[1646591629376,120.037,87.173,87.119,24.0795]
[1646591630178,17.2234,87.17,87.12,17.2228]
[1646591630378,29.1295,87.169,87.12,17.2228]
[1646591630781,29.1295,87.169,87.12,12.9588]
[1646591632578,23.3925,87.169,87.12,12.9588]
[1646591633978,23.3925,87.169,87.12,2.9588]
[1646591636583,5.737,87.168,87.12,2.9588]
[1646591638688,5.27852416,87.168,87.12,2.9588]
[1646591639490,5.27852416,87.168,87.106,48.7340255]
[1646591639491,114.3,87.167,87.09,71.1922]
[1646591639689,6.12171102,87.166,87.11,17.225]
[1646591639890,5.737,87.166,87.11,17.225]
[1646591640092,5.737,87.168,87.11,17.225]
[1646591640690,5.737,87.168,87.12,17.2236]
[1646591648725,5.737,87.168,87.121,24.1774]
[1646591652231,5.27852416,87.168,87.121,24.1774]
[1646591658240,17.2254,87.16,87.121,24.1774]
[1646591658437,0.59719635,87.158,87.08,92.02398466]
[1646591658638,114.3,87.156,87.081,22.6222]
[1646591658838,0.59719635,87.153,87.081,22.6222]
[1646591659039,0.59719635,87.151,87.081,22.6222]
[1646591659239,17.2295,87.14,87.09,17.2291]
[1646591659440,5.738,87.139,87.09,17.2291]
[1646591659840,5.738,87.139,87.091,23.2702]
[1646591661841,5.738,87.139,87.1,17.2276]
[1646591662040,5.738,87.148,87.1,17.2276]
[1646591662242,24.9951,87.147,87.1,17.2276]
[1646591662843,5.738,87.146,87.1,17.2276]
[1646591663342,114.3,87.139,87.091,23.2702]
[1646591663543,0.45779029,87.138,87.091,23.2702]
[1646591663841,114.3,87.139,87.091,23.2702]
[1646591664243,17.2338,87.13,87.091,23.2702]
[1646591664441,5.739,87.129,87.091,23.2702]
[1646591665044,114.3,87.128,87.082,1.4546322]
[1646591665245,0.41854932,87.127,87.082,1.4546322]
[1646591665644,0.41854932,87.124,87.115,3.216e-05]
[1646591665844,114.3,87.122,87.115,3.216e-05]
[1646591666044,114.3,87.12,87.115,3.216e-05]
[1646591666244,114.3,87.118,87.115,3.216e-05]
[1646591666446,114.3,87.116,87.115,3.216e-05]
[1646591666644,5.739,87.116,87.115,3.216e-05]
[1646591667847,120.039,87.116,87.115,3.216e-05]
[1646591671652,22.8404,87.117,87.115,3.216e-05]
[1646591677762,5.739,87.116,87.115,3.216e-05]
[1646591680577,120.039,87.116,87.115,3.216e-05]
[1646591681380,0.01996784,87.114,87.061,24.1065]
[1646591681580,17.2385,87.1,87.061,24.1065]
[1646591681978,114.3,87.099,87.04,17.2391]
[1646591682179,114.3,87.097,87.04,17.2391]
[1646591682378,120.042,87.097,87.032,23.8264]
[1646591682578,0.39308264,87.096,87.032,23.8264]
[1646591683081,120.042,87.097,87.032,23.8264]
[1646591683280,17.2389,87.09,87.02,17.243]
[1646591683478,17.2389,87.09,86.985,24.0152]
[1646591683479,68.78,87.084,87.004,23.1902]
[1646591683679,183.54444885,87.081,87.004,23.1902]
[1646591683898,0.46444885,87.078,87.004,23.1902]
[1646591684280,68.78,87.075,86.991,23.4485]
[1646591684480,114.3,87.059,86.991,23.4485]
[1646591684680,114.3,87.057,86.991,23.4485]
[1646591685680,114.3,87.066,86.991,23.4485]
[1646591685882,114.3,87.064,86.991,23.4485]
[1646591686082,17.2472,87.05,87.0,17.2472]
[1646591686281,114.3,87.049,87.0,17.2472]
[1646591688885,17.2472,87.05,87.0,17.2472]
[1646591688886,114.3,87.047,87.0,17.2472]
[1646591689089,114.3,87.045,87.0,17.2472]
[1646591689286,114.3,87.043,87.0,17.2472]
[1646591689486,5.745,87.042,87.0,17.2472]
[1646591690185,114.3,87.048,87.0,17.2472]